bitfinex-derivatives/quotes_ETHF0:USTF0_20250106
["timestamp","ask_amount","ask_price","bid_price","bid_amount"]
[1736189457025,3.20515108,3677.5,3677.1,3.47966]
[1736189457026,3.20515108,3677.5,3677.4,0.27184]
[1736189457420,3.20515108,3677.6,3677.3,0.5337]
[1736189457625,3.47697108,3677.6,3677.5,3.2078]
[1736189458228,5.62246627,3677.6,3677.5,3.2078]
[1736189458430,0.27184,3677.4,3677.3,0.5337]
[1736189459327,0.5538,3677.5,3677.2,0.5399]
[1736189459531,2.41734519,3677.3,3677.2,0.5399]
[1736189460528,2.41734519,3677.3,3677.1,3.2078]
[1736189460529,0.27185,3677.2,3677.1,3.2078]
[1736189461630,3.88498689,3677.2,3677.1,3.2078]
[1736189461829,3.88498689,3677.2,3676.6,4.25882585]
[1736189461830,0.27189,3676.7,3676.6,4.25882585]
[1736189462029,2.41738519,3676.7,3676.6,4.25882585]
[1736189462628,0.2719,3676.6,3676.5,3.2078]
[1736189466338,0.27193,3676.2,3676.1,7.46662585]
[1736189466540,0.27193,3676.2,3676.1,3.2078]
[1736189467139,2.14549519,3676.6,3676.1,3.2078]
[1736189467346,2.14549519,3676.6,3675.9,5.32762585]
[1736189467347,3.47704108,3676.7,3676.5,3.4797]
[1736189467635,3.20515108,3676.7,3676.6,0.2719]
[1736189467837,0.27189,3676.7,3676.6,1.0946]
[1736189468048,0.27189,3676.7,3676.6,41.8946]
[1736189468642,5.35064627,3676.9,3676.6,41.8946]
[1736189468836,0.27189,3676.7,3676.6,41.8946]
[1736189469638,0.27189,3676.7,3676.6,1.0946]
[1736189472544,0.27189,3676.7,3676.6,5.35342585]
[1736189472745,0.27189,3676.7,3676.6,4.25882585]
[1736189473648,2.14549519,3676.9,3676.5,3.2078]
[1736189473944,2.41739519,3676.6,3676.5,3.2078]
[1736189475041,1.087,3676.9,3676.5,3.2078]
[1736189475343,3.20515108,3677.1,3676.5,3.2078]
[1736189475535,3.20515108,3677.1,3676.3,4.25882585]
[1736189475536,0.27187,3677.0,3676.9,3.47967]
[1736189475948,3.20515108,3677.1,3676.9,3.2078]
[1736189476248,0.27187,3677.1,3677.0,0.27187]
[1736189476545,3.20515108,3677.3,3676.9,3.2078]
[1736189476738,3.20515108,3677.3,3677.2,0.27186]
[1736189477341,0.27184,3677.4,3676.9,7.46662585]
[1736189477545,3.47697108,3677.7,3677.6,0.27183]
[1736189477750,0.27183,3677.6,3677.5,0.27183]
[1736189477952,0.27183,3677.5,3677.4,1.89414]
[1736189478645,0.27183,3677.6,3677.5,4.53065585]
[1736189479353,0.27178,3678.2,3677.7,0.27181]
[1736189479648,0.2718,3678.0,3677.9,3.2078]
[1736189479838,3.20515108,3678.3,3677.9,3.4796]
[1736189480043,0.27178,3678.2,3678.0,0.2718]
[1736189480247,0.27178,3678.2,3678.1,0.542]
[1736189482045,0.5608,3678.7,3678.1,0.542]
[1736189482248,0.27176,3678.6,3678.4,0.27177]
[1736189482451,3.20515108,3678.9,3678.3,3.2078]
[1736189482944,3.20515108,3678.9,3678.7,3.2078]
[1736189483150,3.47688108,3678.9,3678.8,0.5385]
[1736189484552,0.27173,3678.9,3678.8,0.5385]
[1736189485351,0.27173,3678.9,3678.8,3.7463]
[1736189490855,0.27173,3679.0,3678.8,4.01804]
[1736189491259,2.14549519,3679.3,3678.9,0.526]
[1736189491454,2.14549519,3679.3,3678.9,0.79773]
[1736189491658,1.087,3679.4,3678.9,0.526]
[1736189491859,1.087,3679.4,3679.2,3.47951]
[1736189491860,1.3587,3679.4,3679.2,3.47951]
[1736189492063,0.2717,3679.4,3679.2,3.47951]
[1736189493264,0.27167,3679.7,3679.5,0.27168]
[1736189493560,0.27167,3679.7,3679.6,3.7454]
[1736189494161,0.27167,3679.8,3679.6,4.01707]
[1736189494357,2.68319519,3680.2,3679.6,3.7454]
[1736189494555,2.68319519,3680.2,3679.7,0.27167]
[1736189494957,2.68319519,3680.2,3680.0,3.2078]
[1736189495252,0.27165,3680.1,3680.0,3.2078]
[1736189495657,3.2078,3680.8,3680.0,5.35329519]
[1736189495856,0.27162,3680.4,3680.0,5.35329519]
[1736189496058,0.27163,3680.3,3680.0,3.2078]
[1736189496260,0.27163,3680.3,3680.1,0.27164]
[1736189496860,6.03228519,3680.8,3680.0,3.2078]
[1736189497163,0.27163,3680.3,3680.1,0.27164]
[1736189497358,0.27163,3680.2,3680.1,0.27164]
[1736189497765,0.27163,3680.2,3680.0,3.47945]
[1736189497969,0.27163,3680.2,3680.1,0.27164]
[1736189498171,0.27163,3680.3,3680.2,0.27163]
[1736189498467,0.2716,3680.7,3680.2,41.07163]
[1736189498667,0.27161,3680.5,3680.4,3.2078]
[1736189499567,2.14549519,3680.5,3680.0,3.2078]
[1736189499767,0.27164,3680.1,3680.0,3.2078]
[1736189501262,0.27164,3680.1,3679.2,0.5408]
[1736189501462,0.27165,3680.0,3679.9,3.2078]
[1736189501867,0.5143,3680.1,3679.5,3.2078]
[1736189502063,0.5143,3680.1,3678.8,2.14549519]
[1736189502064,0.27171,3679.2,3679.1,3.2078]
[1736189502870,0.27171,3679.3,3679.1,3.47952]
[1736189503066,0.27171,3679.2,3679.1,3.2078]
[1736189503569,1.086,3680.2,3679.1,3.2078]
[1736189503870,0.27168,3679.6,3679.5,3.2078]
[1736189504662,0.27167,3679.8,3679.6,0.27168]
[1736189504868,1.086,3680.1,3679.5,3.2078]
[1736189505066,3.20019519,3680.3,3679.5,3.2078]
[1736189505067,0.27166,3680.0,3679.6,1.0661]
[1736189505365,0.27165,3680.0,3679.8,0.27166]
[1736189505573,4.28619519,3680.3,3679.6,1.0661]
[1736189505968,0.27167,3679.7,3679.6,1.0661]
[1736189506767,2.14549519,3679.7,3679.5,3.2078]
[1736189506967,0.81198,3679.6,3679.5,3.2078]
[1736189507169,1.35398,3679.6,3679.5,3.2078]
[1736189510576,1.35398,3679.6,3679.1,3.2078]
[1736189510577,1.0823,3679.6,3679.1,3.2078]
[1736189510780,0.27172,3679.2,3679.1,3.2078]
[1736189514983,1.086,3679.5,3679.1,3.2078]
[1736189515181,4.2938,3680.3,3679.1,5.35329519]
[1736189515374,0.27166,3679.9,3679.8,3.2078]
[1736189515981,0.27166,3679.9,3679.8,44.0078]
[1736189516483,0.5202,3680.2,3679.8,3.2078]
[1736189516679,0.27165,3680.0,3679.8,3.2078]
[1736189516883,0.27164,3680.2,3679.9,0.5551]
[1736189517177,0.27164,3680.2,3680.0,0.27165]
[1736189517374,0.27164,3680.2,3679.9,0.5551]
[1736189517375,3.75169519,3680.5,3679.9,0.5551]
[1736189517585,0.27165,3680.0,3679.9,0.5551]
[1736189518981,3.75169519,3680.5,3679.8,3.47946]
[1736189518982,2.14549519,3680.2,3679.8,3.2078]
[1736189519177,0.27166,3679.9,3679.8,3.2078]
[1736189522780,0.27166,3679.9,3679.3,0.5519]
[1736189522781,0.67917,3679.8,3679.4,3.2078]
[1736189523085,0.27169,3679.5,3679.4,3.2078]
[1736189523877,0.5611,3679.8,3679.4,3.2078]
[1736189524083,0.27168,3679.7,3679.6,0.27168]
[1736189524275,0.5611,3679.8,3679.4,3.2078]
[1736189524276,0.27169,3679.5,3679.4,3.2078]
[1736189524476,0.5611,3679.8,3679.4,3.2078]
[1736189524785,0.27168,3679.6,3679.4,3.47949]
[1736189525286,0.27166,3679.8,3679.7,0.27167]
[1736189525783,0.27166,3679.8,3679.4,3.2078]
[1736189526079,0.27168,3679.6,3679.5,0.27168]
[1736189527684,0.27167,3679.8,3679.7,0.27166]
[1736189527985,1.086,3680.3,3679.4,3.2078]
[1736189528184,3.71144046,3680.5,3680.0,3.2078]
[1736189528385,0.27164,3680.2,3680.1,1.33184]
[1736189528778,0.27164,3680.2,3680.1,1.88314]
[1736189529578,0.27164,3680.2,3680.1,1.6115]
[1736189530787,0.27164,3680.2,3680.1,1.88314]
[1736189530986,0.27163,3680.3,3680.2,0.27163]
[1736189531189,0.27163,3680.2,3680.1,1.88314]
[1736189531685,0.5271,3680.8,3680.1,1.6115]
[1736189531989,0.2716,3680.7,3680.6,3.2078]
[1736189532790,1.086,3681.0,3680.7,0.2716]
[1736189532791,0.2716,3680.8,3680.7,0.2716]
[1736189533190,0.2716,3680.8,3680.6,3.2078]
[1736189533191,0.27159,3680.8,3680.6,3.4794]
[1736189533492,0.2716,3680.8,3680.6,3.4794]
[1736189533690,0.27159,3680.9,3680.7,0.2716]
[1736189533889,0.27159,3680.9,3680.8,0.5418]
[1736189535395,0.27158,3680.9,3680.8,0.5418]
[1736189535998,3.18704046,3681.6,3680.8,0.5418]
[1736189536290,0.27155,3681.4,3681.3,3.2078]
[1736189537898,0.27155,3681.4,3680.8,1.37659]
[1736189537899,3.86590046,3681.6,3680.9,3.2078]
[1736189538195,0.27158,3681.0,3680.9,3.2078]
[1736189539196,2.14549519,3681.1,3680.5,7.44164833]
[1736189539399,0.27161,3680.6,3680.5,7.44164833]
[1736189540695,0.27161,3680.6,3680.5,3.2078]
[1736189542205,0.27161,3680.7,3680.5,3.47942]
[1736189542502,0.2716,3680.8,3680.6,0.27161]
[1736189542891,0.517,3680.9,3680.5,3.2078]
[1736189542892,0.27161,3680.6,3680.5,3.2078]
[1736189543302,1.086,3681.0,3680.5,3.2078]
[1736189543490,1.086,3681.0,3680.6,0.5345]
[1736189543804,0.2716,3680.7,3680.6,0.5345]
[1736189544797,0.2716,3680.7,3680.6,0.8061]
[1736189545004,0.2716,3680.7,3680.6,0.5345]
[1736189546307,0.2716,3680.6,3680.5,3.2078]
[1736189546504,0.8232,3680.6,3680.5,3.2078]
[1736189547204,0.27162,3680.4,3680.3,4.23384833]
[1736189547598,0.27163,3680.2,3680.1,3.2078]
[1736189549608,0.67894,3681.0,3680.1,6.03238519]
[1736189549809,0.27159,3680.8,3680.7,3.2078]
[1736189550506,0.27159,3680.8,3680.7,4.2542]
[1736189550905,0.6789,3681.2,3680.7,4.2542]
[1736189551101,0.27159,3680.8,3680.7,45.32579]
[1736189551298,0.27159,3680.8,3680.7,45.0542]
[1736189551917,0.27159,3680.8,3680.7,4.2542]
[1736189552106,0.27159,3680.8,3680.7,4.5258]
[1736189553212,0.27159,3680.8,3680.7,4.2542]
[1736189556909,0.27159,3680.8,3680.7,3.739]
[1736189557111,0.27159,3680.8,3680.7,3.2078]
[1736189559515,0.27158,3680.9,3680.8,0.27158]
[1736189559813,0.27158,3680.9,3680.8,0.5041]
[1736189560008,0.27158,3680.9,3680.8,0.77569]
[1736189560912,0.27158,3680.9,3680.8,0.5041]
[1736189561109,0.27158,3680.9,3680.8,0.77569]
[1736189561311,0.27158,3680.9,3680.8,0.5041]
[1736189562813,2.80798206,3681.2,3680.7,3.2078]
[1736189562814,0.27159,3680.8,3680.7,3.2078]
[1736189563010,0.78039,3680.8,3680.7,3.2078]
[1736189563411,2.92588519,3680.8,3680.7,3.2078]
[1736189563615,0.78039,3680.8,3680.7,3.2078]
[1736189564112,0.27159,3680.8,3680.7,3.2078]
[1736189564911,2.40065206,3680.9,3680.7,3.47939]
[1736189565313,2.12906206,3680.9,3680.7,3.2078]
[1736189565519,2.12906206,3680.9,3680.8,41.58909]
[1736189566215,0.27157,3681.1,3680.9,0.27158]
[1736189566411,0.27157,3681.1,3681.0,0.5498]
[1736189566718,0.27157,3681.1,3681.0,1.0695]
[1736189566913,0.5075,3681.3,3680.7,10.07827249]
[1736189567115,2.12906206,3681.5,3681.3,0.27155]
[1736189567317,0.27154,3681.4,3681.3,41.07155]
[1736189567618,0.27154,3681.4,3681.3,0.27155]
[1736189567816,2.40060206,3681.5,3681.3,0.27155]
[1736189568115,2.12906206,3681.5,3681.2,3.2078]
[1736189568313,2.12906206,3681.5,3681.3,0.27155]
[1736189568519,0.27154,3681.4,3681.3,0.27155]
[1736189568910,0.27155,3681.3,3681.2,3.2078]
[1736189569513,0.27155,3681.3,3681.2,3.47936]
[1736189570621,0.27155,3681.3,3681.2,3.2078]
[1736189571419,0.27155,3681.3,3681.2,3.47936]
[1736189571921,0.27155,3681.4,3681.2,3.47936]
[1736189572117,0.27155,3681.3,3681.2,3.2078]
[1736189573223,0.27155,3681.3,3681.2,3.47936]
[1736189573616,0.27155,3681.3,3681.2,7.45141814]
[1736189573810,2.12906206,3681.6,3681.2,7.45141814]
[1736189574019,2.12906206,3681.6,3681.5,0.27154]
[1736189574919,0.27153,3681.7,3681.5,4.51515814]
[1736189575124,0.27153,3681.7,3681.6,3.7334]
[1736189575319,2.12906206,3681.8,3681.6,3.7334]
[1736189575519,2.40058206,3681.8,3681.6,4.51002]
[1736189575828,0.27152,3681.7,3681.6,4.51002]
[1736189576218,0.27152,3681.7,3681.6,8.48211814]
[1736189577120,0.27152,3681.7,3681.6,4.2385]
[1736189577819,0.27152,3681.7,3681.6,3.2078]
[1736189579222,2.40058206,3681.7,3681.6,3.2078]
[1736189581960,2.40058206,3681.7,3681.6,3.47933]
[1736189582256,2.12906206,3681.7,3681.6,3.47933]
[1736189582449,2.12906206,3681.7,3681.6,3.2078]
[1736189582659,2.40058206,3681.7,3681.6,3.47933]
[1736189582957,2.40058206,3681.7,3681.6,3.2078]
[1736189583152,0.27152,3681.7,3681.6,3.47933]
[1736189583355,0.27152,3681.7,3681.6,3.2078]
[1736189583954,0.27152,3681.8,3681.6,3.47933]
[1736189584251,0.27152,3681.8,3681.7,0.27152]
[1736189584446,0.27152,3681.8,3681.6,3.47933]
[1736189584641,2.12906206,3682.0,3681.6,3.47933]
[1736189584642,0.27152,3681.7,3681.6,3.47933]
[1736189584838,0.27152,3681.7,3681.6,3.2078]
[1736189585036,0.27152,3681.7,3681.6,3.47933]
[1736189585829,0.27152,3681.7,3681.6,3.2078]
[1736189587829,0.27152,3681.8,3681.6,3.47933]
[1736189588028,0.27152,3681.8,3681.7,0.5423]
[1736189591532,2.63396206,3682.1,3681.7,0.5423]
[1736189591729,0.27152,3681.9,3681.8,0.27151]
[1736189592031,0.27152,3681.8,3681.7,0.81382]
[1736189592229,0.27152,3681.8,3681.7,41.61382]
[1736189592427,0.27152,3681.9,3681.7,41.61382]
[1736189592628,0.27151,3682.0,3681.8,0.27152]
[1736189592933,0.27151,3682.0,3681.9,0.5442]
[1736189593524,2.12906206,3682.4,3681.9,0.5442]
[1736189593730,0.27151,3682.1,3682.0,3.9875]
[1736189593922,2.12906206,3682.4,3682.0,3.716]
[1736189594126,2.12906206,3682.4,3682.1,0.2715]
[1736189594332,0.27148,3682.3,3682.1,0.2715]
[1736189594534,2.12906206,3682.4,3682.1,0.2715]
[1736189594730,0.27149,3682.2,3682.1,0.2715]
[1736189595328,2.64036206,3682.6,3682.0,3.716]
[1736189595538,0.2715,3682.2,3682.0,3.9875]
[1736189596129,0.2715,3682.1,3682.0,3.9875]
[1736189597436,0.27149,3682.2,3682.1,0.27149]
[1736189597737,0.27149,3682.3,3682.1,0.27149]
[1736189597930,0.27148,3682.4,3682.0,3.716]
[1736189598129,0.5113,3682.6,3682.2,0.27149]
[1736189598130,0.27147,3682.5,3682.2,0.27149]
[1736189598330,0.27147,3682.5,3682.4,3.2078]
[1736189601736,0.27147,3682.5,3682.4,3.7349]
[1736189603234,0.27147,3682.5,3682.4,4.00637]
[1736189603436,0.5113,3682.6,3682.5,0.27147]
[1736189603641,3.18686206,3683.0,3682.4,5.88039519]
[1736189603642,2.12906206,3683.0,3682.4,5.88039519]
[1736189603943,2.12906206,3683.1,3683.0,0.27143]
[1736189604437,0.27143,3683.0,3682.9,3.2078]
[1736189605029,0.27143,3683.0,3682.9,44.0078]
[1736189606339,0.27143,3683.0,3682.5,4.77781814]
[1736189606340,0.27146,3682.6,3682.5,8.25708814]
[1736189606544,0.27146,3682.6,3682.5,7.98561814]
[1736189606842,0.5484,3683.1,3682.5,3.742]
[1736189607141,0.27146,3682.7,3682.6,0.27146]
[1736189608142,0.5484,3683.1,3682.5,3.742]
[1736189608340,0.5484,3683.1,3682.6,2.14549519]
[1736189608532,0.27145,3682.8,3682.7,0.27145]
[1736189608738,1.21775,3683.3,3682.6,2.14549519]
[1736189608938,0.27144,3682.9,3682.8,0.27144]
[1736189609136,0.27143,3683.1,3683.0,0.27143]
[1736189609443,0.27143,3683.1,3683.0,3.2078]
[1736189611139,0.5392,3683.3,3683.0,3.2078]
[1736189611345,0.5392,3683.3,3683.2,2.41691519]
[1736189612045,0.2714,3683.4,3683.3,0.27141]
[1736189612348,0.2714,3683.4,3683.2,2.41691519]
[1736189612542,0.2714,3683.4,3683.2,0.27142]
[1736189612744,2.12906206,3683.8,3683.2,2.14549519]
[1736189612949,2.12906206,3683.8,3683.6,3.47918]
[1736189613148,0.27138,3683.8,3683.6,3.47918]
[1736189613347,0.27137,3683.9,3683.7,41.07138]
[1736189613549,0.27137,3683.9,3683.7,41.61808]
[1736189613850,0.27138,3683.8,3683.7,41.3467]
[1736189614044,2.68366206,3684.0,3683.7,0.5467]
[1736189614240,2.95503206,3684.0,3683.8,0.27137]
[1736189614443,0.27137,3683.9,3683.7,0.81808]
[1736189614642,2.68366206,3684.0,3683.7,0.5467]
[1736189614643,0.27138,3683.8,3683.7,0.5467]
[1736189614844,0.27138,3683.7,3683.6,44.0078]
[1736189615147,0.27138,3683.8,3683.6,44.27919]
[1736189615346,0.27138,3683.8,3683.6,44.0078]
[1736189615547,0.27137,3683.8,3683.7,0.27138]
[1736189615842,0.27137,3683.8,3683.6,44.27918]
[1736189616248,0.27137,3683.8,3683.6,44.0078]
[1736189616448,0.27137,3683.8,3683.6,3.47918]
[1736189616848,0.27137,3683.8,3683.7,0.5389]
[1736189618451,0.27138,3683.7,3683.6,3.2078]
[1736189618654,0.80638,3683.7,3683.6,3.2078]
[1736189621954,0.27138,3683.7,3683.6,3.2078]
[1736189623149,0.27138,3683.7,3683.6,3.47919]
[1736189624056,0.27138,3683.8,3683.7,0.27138]
[1736189624255,0.82596,3684.0,3683.9,0.27136]
[1736189624447,0.5546,3684.0,3683.9,0.27136]
[1736189624757,0.5496,3684.3,3683.9,40.8]
[1736189625059,0.27135,3684.2,3684.1,3.2078]
[1736189625259,0.27135,3684.2,3684.1,3.47915]
[1736189625459,0.27135,3684.2,3684.1,3.2078]
[1736189635768,0.27137,3683.8,3683.7,3.2078]
[1736189639075,2.41686519,3683.8,3683.7,3.2078]
[1736189639372,0.27137,3683.8,3683.7,3.2078]
[1736189640370,2.41686519,3683.8,3683.7,3.2078]
[1736189640569,2.41686519,3683.8,3683.0,4.24361814]
[1736189640570,8.81246175,3683.8,3683.0,7.45141814]
[1736189640770,0.27142,3683.1,3683.0,7.45141814]
[1736189641473,0.27144,3682.9,3682.8,4.24361814]
[1736189641866,0.27142,3683.2,3683.0,0.27143]
[1736189642066,0.27142,3683.2,3683.1,0.4964]
[1736189646270,1.2169,3683.5,3683.0,3.2078]
[1736189646571,0.27144,3682.9,3682.8,4.24361814]
[1736189646769,1.35544,3682.9,3682.8,3.14592927]
[1736189647074,11.19679755,3682.9,3682.6,5.42122452]
[1736189647274,0.27148,3682.3,3682.2,5.42122452]
[1736189647475,2.41697519,3682.3,3682.2,5.42122452]
[1736189648865,2.14549519,3682.3,3682.0,0.5307]
[1736189649068,0.2715,3682.1,3682.0,0.5307]
[1736189650774,0.27148,3682.3,3682.0,41.3307]
[1736189650973,2.12873505,3682.4,3682.1,0.5269]
[1736189651173,2.12873505,3682.4,3682.2,0.5368]
[1736189651174,2.40021505,3682.4,3682.2,0.5368]
[1736189651375,0.27148,3682.4,3682.2,0.5368]
[1736189651579,0.27147,3682.5,3682.2,0.80829]
[1736189651877,0.27147,3682.5,3682.4,3.2078]
[1736189652475,0.27146,3682.6,3682.4,3.2078]
[1736189652671,2.12873505,3682.7,3682.5,0.27146]
[1736189652875,0.27146,3682.7,3682.4,3.47927]
[1736189653382,0.27145,3682.7,3682.4,3.2078]
[1736189653582,0.27145,3682.7,3682.4,3.47927]
[1736189654083,1.085,3683.1,3682.4,3.47927]
[1736189654084,0.27146,3682.6,3682.4,3.47927]
[1736189654884,1.085,3683.1,3682.4,3.2078]
[1736189655086,0.27147,3682.5,3682.4,3.2078]
[1736189655381,0.27147,3682.5,3682.4,3.47927]
[1736189656478,0.27147,3682.5,3682.4,3.2078]
[1736189662182,0.76477,3682.5,3682.4,3.2078]
[1736189663483,2.14549519,3682.9,3682.4,3.2078]
[1736189663687,2.12873505,3683.0,3682.5,1.0083]
[1736189663985,0.27146,3682.6,3682.5,1.0083]
[1736189667591,0.27146,3682.6,3682.5,1.27977]
[1736189667791,0.27146,3682.7,3682.6,0.27146]
[1736189667992,0.67857,3683.1,3682.5,1.0083]
[1736189668386,0.27146,3682.6,3682.5,1.0083]
[1736189668587,0.27146,3682.6,3682.5,1.27977]
[1736189669088,0.27146,3682.6,3682.5,1.0083]
[1736189669783,0.27146,3682.6,3682.5,1.27977]
[1736189670387,0.27146,3682.6,3682.5,1.0083]
[1736189670894,0.27146,3682.6,3682.5,1.27977]
[1736189672489,0.27146,3682.6,3682.5,1.0083]
[1736189673486,0.27146,3682.6,3682.5,1.27977]
[1736189673695,0.27146,3682.6,3682.5,1.0083]
[1736189674798,2.12873505,3683.5,3682.5,6.0083]
[1736189674996,0.27141,3683.4,3683.3,3.4792]
[1736189675590,2.40013505,3683.5,3683.4,0.2714]
[1736189675894,2.12873505,3683.5,3683.4,0.7816]
[1736189676090,0.27136,3683.9,3683.8,0.27137]
[1736189676285,2.12873505,3684.0,3683.9,0.27136]
[1736189676490,2.12873505,3684.0,3683.9,0.75966]
[1736189677593,0.27135,3684.2,3683.9,0.4883]
[1736189677790,0.27135,3684.2,3684.1,0.27135]
[1736189680786,0.67831,3684.6,3684.1,0.27135]
[1736189680998,3.70685964,3685.2,3684.6,0.27131]
[1736189680999,0.27131,3684.7,3684.6,0.27131]
[1736189682591,2.82367519,3685.2,3684.6,0.27131]
[1736189682792,0.2713,3684.8,3684.6,0.27131]
[1736189684597,0.2713,3684.8,3684.5,0.27131]
[1736189685100,6.03147519,3685.2,3684.2,3.7297]
[1736189685296,2.14549519,3684.9,3684.2,3.7297]
[1736189685500,2.14549519,3684.9,3684.2,3.2078]
[1736189685701,0.27132,3684.5,3684.3,0.27133]
[1736189685901,0.27132,3684.5,3684.2,3.47914]
[1736189686299,0.27132,3684.5,3684.2,3.2078]
[1736189686501,0.27132,3684.5,3684.3,0.27133]
[1736189686807,0.27132,3684.6,3684.3,0.27133]
[1736189687000,0.4986,3684.7,3684.4,0.5246]
[1736189687200,0.27132,3684.6,3684.4,0.5246]
[1736189687399,0.27132,3684.5,3684.4,0.5246]
[1736189687703,0.76991,3684.7,3684.5,0.27132]
[1736189687898,0.27131,3684.7,3684.5,0.78222]
[1736189688099,0.5125,3685.0,3684.5,0.5109]
[1736189688400,0.27131,3684.6,3684.5,0.5109]
[1736189689699,0.27131,3684.7,3684.5,0.78222]
[1736189689905,0.27131,3684.7,3684.6,3.2078]
[1736189691505,0.27132,3684.5,3684.4,0.5246]
[1736189692403,0.27133,3684.3,3684.2,3.2078]
[1736189704627,1.0153,3684.5,3684.0,0.5342]
[1736189704835,0.27135,3684.2,3684.1,3.2078]
[1736189705534,0.27135,3684.1,3684.0,0.5342]
[1736189711440,0.27135,3684.1,3684.0,41.3342]
[1736189711732,0.27135,3684.1,3684.0,41.60555]
[1736189711936,0.27135,3684.1,3684.0,41.3342]
[1736189712942,0.27135,3684.1,3684.0,41.60555]
[1736189713442,2.12873505,3685.2,3684.0,46.3342]
[1736189713639,0.27127,3685.1,3685.0,3.2078]
[1736189715140,2.65823505,3685.5,3685.0,3.2078]
[1736189715341,0.27125,3685.4,3685.2,0.27126]
[1736189715839,0.27126,3685.3,3685.1,2.14549519]
[1736189716039,3.71113505,3685.9,3685.1,2.14549519]
[1736189716238,0.27125,3685.5,3685.4,3.2078]
[1736189726253,0.67806,3685.8,3685.0,3.7009]
[1736189726254,2.14549519,3685.7,3685.0,3.7009]
[1736189726452,0.27127,3685.1,3685.0,3.2078]
[1736189729245,2.14549519,3685.2,3684.8,0.4977]
[1736189729547,0.27129,3684.9,3684.8,0.4977]
[1736189730244,0.27132,3684.4,3684.3,0.5228]
[1736189730448,0.27132,3684.4,3684.3,1.0371]
[1736189730850,0.27132,3684.4,3684.3,0.5143]
[1736189731053,0.27132,3684.4,3684.2,3.2078]
[1736189731054,0.27133,3684.3,3684.2,3.2078]
[1736189733348,0.67827,3684.7,3684.2,5.35329519]
[1736189733849,0.27133,3684.4,3684.2,5.35329519]
[1736189734048,0.27133,3684.4,3684.3,0.27133]
[1736189734254,0.27133,3684.4,3684.3,41.07133]
[1736189734652,0.27132,3684.5,3684.3,41.07133]
[1736189734953,0.27132,3684.5,3684.4,0.4903]
[1736189736552,2.14549519,3684.6,3684.2,3.2078]
[1736189736752,0.27133,3684.3,3684.2,3.2078]
[1736189744855,0.27136,3683.9,3683.8,3.7322]
[1736189746252,0.27136,3683.9,3683.8,0.5244]
[1736189746455,0.2714,3683.4,3683.3,3.2078]
[1736189746659,0.2714,3683.4,3683.3,3.7053]
[1736189746957,0.2714,3683.4,3683.3,44.5053]
[1736189749562,0.2714,3683.4,3683.3,3.7053]
[1736189750263,0.2714,3683.4,3683.3,0.4975]
[1736189751361,2.82395519,3683.7,3683.2,3.2078]
[1736189751563,0.27141,3683.3,3683.2,3.2078]
[1736189753559,0.27138,3683.7,3683.5,0.27139]
[1736189753759,0.27138,3683.7,3683.6,3.7009]
[1736189753960,0.27138,3683.7,3683.6,4.1903]
[1736189754260,0.27138,3683.7,3683.6,44.9903]
[1736189756058,0.27138,3683.7,3683.6,4.1903]
[1736189758365,0.27138,3683.7,3683.6,4.6907]
[1736189758565,0.27137,3683.8,3683.6,4.96208]
[1736189758762,0.27135,3684.1,3683.6,4.6907]
[1736189759069,0.27136,3684.0,3683.8,5.62466519]
[1736189759558,0.27133,3684.3,3683.8,5.62466519]
[1736189759763,0.27136,3684.0,3683.8,5.62466519]
[1736189760361,0.27134,3684.3,3684.2,0.27134]
[1736189760564,0.67823,3684.9,3684.2,5.35329519]
[1736189760761,0.2713,3684.7,3684.6,3.2078]
[1736189762463,0.27133,3684.4,3684.3,1.0201]
[1736189766665,0.27132,3684.6,3684.3,1.0201]
[1736189766863,0.27129,3684.9,3684.3,1.29143]
[1736189767066,6.56953024,3685.1,3684.4,0.27132]
[1736189767262,6.56953024,3685.1,3684.5,41.307]
[1736189767468,0.27131,3684.6,3684.5,0.507]
[1736189768163,5.48653024,3685.1,3684.5,0.507]
[1736189768364,0.27131,3684.6,3684.5,0.507]
[1736189769764,3.35779519,3685.1,3684.5,0.507]
[1736189770161,2.82369519,3685.1,3684.5,0.507]
[1736189770462,0.27131,3684.7,3684.5,0.507]
[1736189770668,0.27131,3684.7,3684.5,0.77832]
[1736189770870,0.27131,3684.6,3684.5,0.507]
[1736189771968,0.27132,3684.5,3684.4,4.23644736]
[1736189772767,0.27133,3684.4,3684.3,1.0201]
[1736189773168,2.14549519,3685.1,3684.3,1.0201]
[1736189773368,0.2713,3684.7,3684.6,3.2078]
[1736189775473,0.2713,3684.7,3684.6,3.733]
[1736189776582,0.2713,3684.8,3684.6,4.00431]
[1736189776777,0.27129,3684.9,3684.6,3.733]
[1736189776981,0.27129,3685.0,3684.8,0.2713]
[1736189777283,0.27129,3685.0,3684.9,0.5081]
[1736189777487,0.27128,3685.1,3685.0,0.27128]
[1736189777673,0.27128,3685.2,3685.0,0.27128]
[1736189778078,3.88591,3685.6,3684.9,1.0152]
[1736189778284,0.27127,3685.2,3685.0,0.27128]
[1736189778786,0.27127,3685.2,3685.1,0.27128]
[1736189779087,3.63813505,3685.7,3685.0,44.0078]
[1736189779285,0.27128,3685.1,3685.0,44.0078]
[1736189779584,0.27128,3685.1,3685.0,44.27908]
[1736189780488,0.27128,3685.1,3685.0,3.47908]
[1736189780993,0.27128,3685.1,3685.0,3.2078]
[1736189783189,1.27748,3685.1,3685.0,3.2078]
[1736189784680,0.27128,3685.0,3684.9,0.5071]
[1736189784989,0.27131,3684.7,3684.6,3.7224]
[1736189785581,2.14549519,3684.9,3684.5,0.5315]
[1736189785889,2.2173,3685.1,3684.4,4.23644736]